bitfinex/quotes_ETHUSD_20250517
["timestamp","ask_amount","ask_price","bid_price","bid_amount"]
[1747479535203,4.02398392,2485.1,2485.0,0.61108494]
[1747479541360,4.02398392,2485.1,2485.0,0.22552737]
[1747479541657,4.02414486,2485.0,2484.9,7.614]
[1747479542014,4.02432878,2484.9,2484.7,0.7708]
[1747479542219,4.02448369,2484.8,2484.6,1.28674058]
[1747479542420,4.02448369,2484.8,2484.7,7.614]
[1747479542817,4.02463074,2484.7,2484.6,0.48194058]
[1747479543047,4.02463074,2484.7,2484.6,7.614]
[1747479543252,4.02463074,2484.7,2484.6,0.22575291]
[1747479543458,4.02463074,2484.7,2484.6,7.83975291]
[1747479544163,4.02438334,2484.9,2484.6,0.22575291]
[1747479544323,4.02438334,2484.9,2484.7,0.38535079]
[1747479544519,4.024112,2485.1,2484.8,1.03055291]
[1747479545070,13.82796594,2485.2,2484.8,1.03055291]
[1747479545668,13.82796594,2485.2,2484.9,0.22575291]
[1747479545834,13.82796594,2485.2,2484.9,0.6111037]
[1747479546034,4.02398633,2485.1,2484.9,0.6111037]
[1747479546660,4.02398633,2485.1,2485.0,0.22575291]
[1747479547035,4.02398633,2485.1,2485.0,0.6111037]
[1747479547770,13.8279294,2485.2,2485.0,0.6111037]
[1747479547958,4.02398293,2485.1,2485.0,0.6111037]
[1747479548769,13.82799259,2485.2,2485.0,0.6111037]
[1747479549275,13.82799259,2485.2,2485.1,7.614]
[1747479549471,4.0234084,2485.5,2485.1,9.41936328]
[1747479549672,4.02353763,2485.4,2485.1,9.41936328]
[1747479549885,4.02376253,2485.3,2485.1,0.98285291]
[1747479550054,4.02376253,2485.3,2485.2,7.614]
[1747479550256,4.02382102,2485.2,2485.1,0.22575291]
[1747479550455,4.02382102,2485.2,2485.1,7.614]
[1747479550865,4.02382102,2485.2,2485.0,0.38535079]
[1747479551160,4.02374558,2485.3,2485.1,8.22520872]
[1747479551484,9.80407527,2485.6,2485.1,8.22520872]
[1747479551785,9.80407527,2485.6,2485.2,0.22585793]
[1747479551991,9.80407527,2485.6,2485.2,7.83985793]
[1747479552283,4.02373774,2485.3,2485.2,0.22585793]
[1747479552490,4.02373774,2485.3,2485.2,7.83185793]
[1747479553179,4.02373774,2485.3,2485.2,0.22585793]
[1747479553375,4.02373774,2485.3,2485.2,7.83185793]
[1747479554085,4.02373774,2485.3,2485.2,0.22585793]
[1747479554388,4.02373774,2485.3,2485.2,7.83185793]
[1747479554587,4.02373774,2485.3,2485.2,0.61146732]
[1747479554892,4.02358743,2485.4,2485.2,0.61146732]
[1747479555255,4.02358743,2485.4,2485.3,0.22585793]
[1747479556767,4.02358743,2485.4,2485.2,0.22585793]
[1747479557405,4.02358743,2485.4,2485.1,7.606]
[1747479558587,4.02362708,2485.4,2485.1,7.606]
[1747479559110,4.02362708,2485.4,2485.2,0.611623]
[1747479559270,4.02365911,2485.3,2485.2,0.611623]
[1747479562405,4.02349722,2485.4,2485.2,0.611623]
[1747479562576,4.02365911,2485.3,2485.2,0.611623]
[1747479565302,11.62738165,2485.5,2485.2,0.611623]
[1747479565467,4.02349722,2485.4,2485.2,0.611623]
[1747479565868,4.02349722,2485.4,2485.2,0.3856362]
[1747479566084,4.02365911,2485.3,2485.2,0.3856362]
[1747479567612,4.02365911,2485.3,2485.2,0.61166837]
[1747479567809,4.02347272,2485.5,2485.2,0.61166837]
[1747479568009,4.02347272,2485.5,2485.2,1.36956837]
[1747479568307,13.82734262,2485.6,2485.3,0.22603217]
[1747479568674,4.02333731,2485.5,2485.3,0.22603217]
[1747479568903,4.02333731,2485.5,2485.4,0.3856362]
[1747479569103,4.02333731,2485.5,2485.4,0.61166837]
[1747479570413,4.02333534,2485.5,2485.4,0.61166837]
[1747479573578,4.02333534,2485.5,2485.4,0.22603217]
[1747479576016,4.02333534,2485.5,2485.4,0.61160037]
[1747479578637,4.02333534,2485.5,2485.4,8.21660037]
[1747479579802,9.80407527,2485.6,2485.4,9.11405041]
[1747479580719,13.82726102,2485.6,2485.5,0.22603217]
[1747479580902,13.82726102,2485.6,2485.5,0.61160037]
[1747479582747,9.80407527,2485.6,2485.5,0.61160037]
[1747479582947,9.80407527,2485.6,2485.5,1.52300541]
[1747479585123,4.02313172,2485.7,2485.5,1.52300541]
[1747479585323,4.02313172,2485.7,2485.6,0.3855682]
[1747479585859,4.02313172,2485.7,2485.6,0.61160037]
[1747479586953,4.02285892,2485.8,2485.6,0.61160037]
[1747479587257,4.02278279,2485.9,2485.7,0.45521271]
[1747479588055,4.02278279,2485.9,2485.8,0.22603217]
[1747479588957,4.02278279,2485.9,2485.7,0.22918054]
[1747479589155,13.82666752,2486.0,2485.7,0.22918054]
[1747479589456,4.02284978,2485.8,2485.7,0.22918054]
[1747479589656,4.02284978,2485.8,2485.7,0.45470595]
[1747479591267,4.02284978,2485.8,2485.7,0.83962269]
[1747479593269,4.02284978,2485.8,2485.7,0.61044215]
[1747479594468,4.02284978,2485.8,2485.7,0.38491674]
[1747479594675,4.02310235,2485.7,2485.5,1.68020504]
[1747479595039,4.02310235,2485.7,2485.5,0.91140504]
[1747479595882,4.02324551,2485.6,2485.4,8.49445004]
[1747479596349,4.0230898,2485.7,2485.4,8.49445004]
[1747479596969,4.0230898,2485.7,2485.5,0.22561656]
[1747479597160,4.0230898,2485.7,2485.5,7.82261656]
[1747479597470,4.57389444,2485.8,2485.5,7.82261656]
[1747479597769,4.02312989,2485.7,2485.6,0.22561656]
[1747479598969,4.02301162,2485.7,2485.6,0.22561656]
[1747479599572,4.02301162,2485.7,2485.6,0.61072353]
[1747479601647,4.02275474,2485.9,2485.6,1.52124089]
[1747479602579,4.02296973,2485.8,2485.7,0.22561656]
[1747479603576,4.02284978,2485.8,2485.7,0.61072353]
[1747479604594,22.37782505,2485.8,2485.7,0.61072353]
[1747479605270,4.02350076,2485.4,2485.1,17.375]
[1747479605465,10.35497527,2485.8,2485.2,3.2885]
[1747479605690,4.02324751,2485.6,2485.2,3.2885]
[1747479606168,4.02305179,2485.7,2485.2,7.31227399]
[1747479606668,4.02305179,2485.7,2485.3,0.61100734]
[1747479606869,4.02305179,2485.7,2485.4,0.79232813]
[1747479607082,21.41699799,2485.8,2485.5,7.59001084]
[1747479607403,21.41699799,2485.8,2485.6,0.22574726]
[1747479607904,4.02301162,2485.7,2485.5,8.38131084]
[1747479609399,4.02301162,2485.7,2485.6,0.22576323]
[1747479610092,4.02301162,2485.7,2485.6,0.61112311]
[1747479614793,4.57391162,2485.7,2485.6,0.61112311]
[1747479614970,12.57391162,2485.7,2485.6,0.38535988]
[1747479616381,4.02365911,2485.3,2485.2,0.48194058]
[1747479616599,4.57455911,2485.3,2485.2,0.48194058]
[1747479618316,4.02398293,2485.1,2485.0,0.64258745]
[1747479618483,4.02398293,2485.1,2485.0,7.589]
[1747479619103,4.02398293,2485.1,2485.0,7.8147069]
[1747479619277,4.02398293,2485.1,2485.0,8.19995865]
[1747479625730,4.02398293,2485.1,2485.0,7.589]
[1747479626524,4.02436537,2484.9,2484.6,1.26474058]
[1747479626732,4.02446877,2484.8,2484.6,1.26474058]
[1747479626935,4.02446877,2484.8,2484.7,7.59]
[1747479627109,4.02446877,2484.8,2484.7,7.97498058]
[1747479627301,4.02439839,2484.9,2484.7,7.97498058]
[1747479627502,4.02439839,2484.9,2484.8,0.22558158]
[1747479627998,4.02403883,2485.1,2484.8,0.22558158]
[1747479628208,4.02427578,2485.0,2484.9,0.22558158]
[1747479628930,4.02427578,2485.0,2484.9,0.61056216]
[1747479636003,5.80960179,2485.0,2484.9,0.61056216]
[1747479636212,14.84805585,2485.0,2484.9,0.61056216]
[1747479637403,16.84805585,2485.0,2484.9,0.61056216]
[1747479637608,4.02479272,2484.6,2484.5,8.07194058]
[1747479638137,2.0,2485.0,2484.6,4.79949235]
[1747479638324,4.02433596,2484.9,2484.6,0.7747]
[1747479638652,4.02433596,2484.9,2484.7,0.88466406]
[1747479638839,4.02433596,2484.9,2484.7,1.11029893]
[1747479639043,4.02446877,2484.8,2484.7,1.49533193]
[1747479640319,4.02446877,2484.8,2484.7,0.61066787]
[1747479640944,4.02446877,2484.8,2484.7,8.20166787]
[1747479641835,4.02446877,2484.8,2484.7,0.61066787]
[1747479649527,4.02443099,2484.9,2484.8,0.7651]
[1747479649726,10.35497527,2485.2,2484.8,0.7651]
[1747479649727,4.02405149,2485.1,2484.8,1.66177679]
[1747479650196,4.02405149,2485.1,2484.9,0.385033]
[1747479650393,4.02405149,2485.1,2485.0,0.22563487]
[1747479651811,4.02405149,2485.1,2485.0,0.61066787]
[1747479653361,4.02405149,2485.1,2485.0,1.36686787]
[1747479655319,4.02405149,2485.1,2485.0,8.94886787]
[1747479656516,13.82795556,2485.2,2485.0,8.94886787]
[1747479657315,4.02398293,2485.1,2485.0,8.723233]
[1747479657628,4.02430681,2484.9,2484.8,1.26854058]
[1747479657827,4.02430681,2484.9,2484.8,8.85054058]
[1747479658033,4.02423772,2485.0,2484.8,9.0764453]
[1747479658587,4.02423772,2485.0,2484.9,0.22590472]
[1747479658830,13.82798643,2485.2,2484.9,0.22590472]
[1747479659033,9.80407527,2485.2,2484.9,0.61140528]
[1747479659234,13.82799264,2485.2,2484.9,0.61140528]
[1747479659589,13.82799264,2485.2,2485.0,0.22590472]
[1747479660132,13.82799264,2485.2,2485.1,0.61140528]
[1747479660923,9.80407527,2485.2,2485.1,1.39800528]
[1747479662325,4.02330825,2485.6,2485.1,1.39800528]
[1747479662484,4.0232407,2485.6,2485.1,1.39800528]
[1747479662686,4.0232407,2485.6,2485.1,6.0123183]
[1747479662925,4.0232407,2485.6,2485.2,0.61140528]
[1747479663087,4.0232407,2485.6,2485.3,8.3329]
[1747479664026,4.0232407,2485.6,2485.4,0.22590472]
[1747479664225,4.0232407,2485.6,2485.4,0.61140528]
[1747479664525,4.02333534,2485.5,2485.4,0.61140528]
[1747479665425,4.02325619,2485.6,2485.4,0.61140528]
[1747479665804,4.02333534,2485.5,2485.4,0.38550056]
[1747479666988,4.82797533,2485.5,2485.4,0.38550056]
[1747479667826,4.82797533,2485.5,2485.2,7.581]
[1747479667827,4.02365911,2485.3,2485.2,7.581]
[1747479668624,4.02365911,2485.3,2485.2,7.80660772]
[1747479669325,4.02358143,2485.4,2485.2,8.19163936]
[1747479669623,4.02329563,2485.6,2485.3,0.22560772]
[1747479670290,4.02329563,2485.6,2485.4,0.22560772]
[1747479670804,4.02297399,2485.8,2485.5,0.7836]
[1747479671718,4.02309148,2485.7,2485.5,0.7836]
[1747479673696,4.02302342,2485.7,2485.5,0.7836]
[1747479674128,13.82683729,2485.9,2485.5,0.7836]
[1747479674129,4.02292323,2485.8,2485.5,0.7836]
[1747479674436,4.02292323,2485.8,2485.6,0.22543961]
[1747479674810,9.80407527,2485.9,2485.6,0.22543961]
[1747479675213,9.80407527,2485.9,2485.5,0.7836]
[1747479676131,4.02301162,2485.7,2485.5,0.7836]
[1747479676429,4.02317347,2485.6,2485.5,0.7836]
[1747479676616,0.5509,2485.7,2485.2,8.06294058]
[1747479676930,4.02363107,2485.4,2485.2,8.06294058]
[1747479677125,4.02363107,2485.4,2485.3,0.22548687]
[1747479677730,4.02363107,2485.4,2485.3,0.61045374]
[1747479678132,4.02363107,2485.4,2485.3,0.61050897]
[1747479678432,4.02342385,2485.5,2485.3,0.61050897]
[1747479678930,4.02342385,2485.5,2485.4,0.2255421]
[1747479679114,4.02322435,2485.6,2485.4,0.2255421]
[1747479679428,4.02308183,2485.7,2485.4,0.2255421]
[1747479679640,4.02320368,2485.6,2485.5,0.38496687]
[1747479679801,4.02310456,2485.7,2485.5,0.38496687]
[1747479681340,4.02310456,2485.7,2485.6,0.22565686]
[1747479683514,21.39686381,2485.9,2485.6,0.22565686]
[1747479683936,21.39686381,2485.9,2485.6,0.38496687]
[1747479683937,4.02301162,2485.7,2485.6,0.38496687]
[1747479684709,4.02301162,2485.7,2485.5,0.38496687]
[1747479685250,4.02301162,2485.7,2485.6,0.22575153]
[1747479686640,4.02301162,2485.7,2485.6,0.6107184]
[1747479690144,4.0229253,2485.8,2485.6,0.6107184]
[1747479690318,21.39488517,2485.9,2485.6,0.6107184]
[1747479690648,4.02292364,2485.8,2485.7,0.22575153]
[1747479690836,4.02292364,2485.8,2485.7,0.6107184]
[1747479691249,13.8268272,2485.9,2485.7,0.6107184]
[1747479691421,4.02284978,2485.8,2485.7,0.6107184]
[1747479692347,13.82682589,2485.9,2485.7,0.6107184]
[1747479693157,4.02284978,2485.8,2485.7,0.38496687]
[1747479694052,4.02284978,2485.8,2485.7,0.61089085]
[1747479694654,13.82685823,2485.9,2485.7,0.61089085]
[1747479695221,13.82685823,2485.9,2485.8,0.38496687]
[1747479695925,13.82685823,2485.9,2485.8,0.61089085]
[1747479697149,14.37775823,2485.9,2485.8,0.22592398]
[1747479697357,4.02333534,2485.5,2485.4,0.48194058]
[1747479698136,4.02333534,2485.5,2485.4,0.70790338]
[1747479698843,4.57423534,2485.5,2485.4,0.70790338]
[1747479699052,4.57423534,2485.5,2485.4,0.61164322]
[1747479700036,0.5509,2485.5,2485.4,0.61164322]
[1747479700354,4.02325391,2485.6,2485.4,0.61164322]
[1747479700557,4.02325391,2485.6,2485.5,0.2259628]
[1747479700761,4.02325391,2485.6,2485.5,0.61164322]
[1747479704958,4.0230783,2485.7,2485.5,0.61164322]
[1747479705159,11.5870783,2485.7,2485.5,0.61164322]
[1747479705663,4.0230783,2485.7,2485.5,0.61164322]
[1747479705845,4.02293095,2485.8,2485.6,0.2259628]
[1747479706030,21.39082153,2485.9,2485.6,0.2259628]
[1747479706449,21.39082153,2485.9,2485.7,0.2259628]
[1747479706646,4.02284978,2485.8,2485.7,0.2259628]
[1747479706856,4.02284978,2485.8,2485.7,0.61164322]
[1747479711975,9.80407527,2485.9,2485.7,0.61164322]
[1747479712550,9.80407527,2485.9,2485.8,0.2259628]
[1747479712850,13.82676323,2485.9,2485.8,0.2259628]
[1747479713158,13.82676323,2485.9,2485.8,0.61164322]
[1747479716301,13.82676323,2485.9,2485.8,0.61159215]
[1747479721902,9.80407527,2485.9,2485.8,0.61159215]
[1747479723274,13.82676323,2485.9,2485.8,0.61159215]
[1747479723667,9.80407527,2485.9,2485.8,0.61159215]
[1747479725899,13.82676323,2485.9,2485.8,0.61159215]
[1747479727215,0.20997212,2486.3,2486.2,4.02220255]
[1747479727397,2.32808637,2486.8,2486.6,4.02147702]
[1747479727574,2.32808637,2486.8,2486.7,8.3859]
[1747479727996,2.32808637,2486.8,2486.7,8.6118628]
[1747479728183,2.02833609,2486.8,2486.7,8.6118628]
[1747479728906,2.02833609,2486.8,2486.7,8.99749215]
[1747479731584,2.02833609,2486.8,2486.7,13.01888596]
[1747479731778,2.02833609,2486.8,2486.7,14.52782472]
[1747479731984,2.02833609,2486.8,2486.7,10.50643091]
[1747479733424,4.02075582,2487.1,2486.7,10.50643091]
[1747479734085,4.02039543,2487.4,2486.7,14.52781101]
[1747479734288,4.02045595,2487.3,2486.8,5.47393995]
[1747479735120,4.02045595,2487.3,2486.9,0.8219]
[1747479735520,4.0202137,2487.5,2487.0,4.02084051]
[1747479735688,4.0202137,2487.5,2486.8,1.4527811]
[1747479735689,9.80407527,2487.8,2487.1,0.8219]
[1747479735882,4.01993889,2487.6,2487.2,7.562]
[1747479736089,4.0202246,2487.5,2487.2,8.80247445]
[1747479736309,4.02026212,2487.4,2487.2,8.80247445]
[1747479736717,4.02042375,2487.3,2487.1,0.8219]
[1747479736993,4.02074705,2487.1,2487.0,17.368]
[1747479737213,4.02074705,2487.1,2487.0,24.922]
[1747479737393,4.02056562,2487.3,2487.0,24.922]
[1747479737592,4.02060244,2487.2,2487.0,24.922]
[1747479737930,4.02060244,2487.2,2487.0,27.306236]
[1747479739116,4.02026212,2487.4,2487.0,27.306236]
[1747479739419,4.02043445,2487.3,2487.1,7.554]
[1747479740494,4.02031611,2487.4,2487.1,7.554]
[1747479743221,4.02031611,2487.4,2487.1,8.3463]
[1747479743419,4.02031611,2487.4,2487.1,11.55825968]
[1747479744020,4.02045923,2487.3,2487.1,11.55825968]
[1747479744544,4.02033329,2487.4,2487.1,11.55825968]
[1747479745228,4.02067109,2487.2,2487.0,19.752236]
[1747479745531,0.5509,2487.5,2487.1,7.553]
[1747479745735,4.02043974,2487.3,2487.1,7.553]
[1747479745936,4.02029154,2487.4,2487.1,7.553]
[1747479746647,4.02043568,2487.3,2487.1,7.553]
[1747479746856,4.02035285,2487.4,2487.1,7.553]
[1747479747145,4.02035285,2487.4,2487.2,2.7305236]
[1747479748339,4.02018018,2487.5,2487.2,2.7305236]
[1747479749244,4.02027241,2487.4,2487.2,2.7305236]
[1747479749648,4.0200678,2487.6,2487.3,0.7632]
[1747479749649,4.02018924,2487.5,2487.3,0.7632]
[1747479750655,16.1009,2487.7,2487.2,2.7305236]
[1747479751154,4.02040443,2487.4,2487.2,2.7305236]
[1747479751370,4.02040443,2487.4,2487.3,1.10467236]
[1747479753167,4.0174486,2487.4,2487.3,1.10467236]
[1747479754625,4.02019549,2487.5,2487.3,1.10467236]
[1747479754829,4.01997192,2487.6,2487.3,1.10467236]
[1747479755077,4.02012947,2487.5,2487.3,1.10467236]
[1747479755423,4.02012947,2487.5,2487.4,0.3835196]
[1747479755965,4.01987939,2487.7,2487.4,1.1836196]
[1747479756170,4.01991644,2487.7,2487.4,1.1836196]
[1747479756467,4.01991644,2487.7,2487.5,0.38411581]
[1747479756626,4.01991644,2487.7,2487.6,7.552]
[1747479758065,4.0201005,2487.5,2487.4,0.3835196]
[1747479758266,4.02041685,2487.4,2487.2,3.21256029]
[1747479758563,4.0201005,2487.5,2487.2,3.21256029]
[1747479758564,4.02042375,2487.3,2487.2,3.21256029]
[1747479758724,4.02042375,2487.3,2487.2,10.76356029]
[1747479758946,4.02034987,2487.4,2487.2,10.9889704]
[1747479759348,4.02019302,2487.5,2487.3,1.09889704]
[1747479759547,4.02019302,2487.5,2487.4,0.38467633]
[1747479759948,4.02019302,2487.5,2487.4,0.61008644]
[1747479760862,4.02001105,2487.6,2487.4,0.61008644]
[1747479761062,4.01981822,2487.7,2487.4,0.61008644]
[1747479761251,4.01993889,2487.6,2487.5,0.22541011]
[1747479761653,4.01993889,2487.6,2487.5,0.61008644]
[1747479763554,4.01984185,2487.7,2487.5,0.86182479]
[1747479764385,4.01984185,2487.7,2487.6,0.22541011]
[1747479765190,13.82376301,2487.8,2487.6,0.22541011]
[1747479765358,13.82376301,2487.8,2487.7,7.551]
[1747479767303,9.80407527,2487.8,2487.7,7.551]
[1747479767487,9.80407527,2487.8,2487.7,8.8331778]
[1747479768068,9.80407527,2487.8,2487.7,9.05858577]
[1747479768396,7.546,2488.4,2487.8,0.7876]
[1747479768580,4.0189546,2488.3,2487.8,4.80719114]
[1747479768788,4.0189546,2488.3,2487.9,1.38657769]
[1747479768986,4.0189546,2488.3,2487.9,1.61198566]
[1747479768987,4.01880802,2488.3,2487.9,1.61198566]
[1747479769295,4.01895523,2488.3,2487.9,1.61198566]
[1747479769797,4.01897701,2488.2,2488.0,0.38467633]
[1747479770117,4.01889758,2488.3,2488.1,0.22540797]
[1747479770266,4.01889758,2488.3,2488.2,7.546]
[1747479771662,4.56974761,2488.3,2488.2,7.546]
[1747479771863,4.01884761,2488.3,2488.2,7.546]
[1747479772705,4.01884761,2488.3,2488.2,8.3006]
[1747479773316,9.80407527,2489.1,2488.3,0.758]
[1747479773478,4.01817816,2488.7,2488.3,0.758]
[1747479773796,4.01807309,2488.8,2488.4,0.22448769]
[1747479774003,4.01807309,2488.8,2488.4,1.6480284]
[1747479774161,4.01816773,2488.7,2488.4,1.6480284]
[1747479774565,4.01816773,2488.7,2488.4,1.42354071]
[1747479774877,9.80407527,2489.1,2488.5,0.758]
[1747479775077,4.01793611,2488.9,2488.5,0.758]
[1747479775401,4.01802436,2488.8,2488.6,1.0035196]
[1747479775565,4.01802436,2488.8,2488.7,7.545]
[1747479776803,4.01802436,2488.8,2488.6,0.38351247]
[1747479776990,4.01790779,2488.9,2488.7,7.545]
[1747479777301,4.01800064,2488.8,2488.7,7.545]
[1747479778405,4.01827095,2488.7,2488.5,0.758]
[1747479778704,4.01827095,2488.7,2488.6,7.76215407]
[1747479779072,4.01827095,2488.7,2488.6,0.21815407]
[1747479779267,4.01827095,2488.7,2488.5,0.758]
[1747479779268,4.01832355,2488.6,2488.5,0.758]
[1747479779471,4.01823696,2488.7,2488.5,7.544]
[1747479780516,4.01864651,2488.4,2488.2,0.7546]
[1747479780670,4.01864651,2488.4,2488.3,7.544]
[1747479780876,4.01880802,2488.3,2488.2,0.7546]
[1747479781076,4.01880802,2488.3,2488.2,8.2986]
[1747479781515,4.01857655,2488.5,2488.2,8.2986]
[1747479782014,4.01857031,2488.5,2488.2,8.2986]
[1747479782393,4.01865386,2488.4,2488.2,8.2986]
[1747479782815,4.01848677,2488.5,2488.2,8.2986]
[1747479782985,4.01879224,2488.4,2488.2,8.2986]
[1747479783386,4.01880802,2488.3,2488.2,8.2986]
[1747479783589,4.01896953,2488.2,2488.1,18.1292]
[1747479783786,4.01896953,2488.2,2488.1,17.36]
[1747479784025,4.01896953,2488.2,2487.7,0.48203669]
[1747479784026,4.01961572,2487.8,2487.7,0.48203669]
[1747479784887,4.0197773,2487.7,2487.6,7.544]
[1747479785156,4.01993889,2487.6,2487.5,7.544]
[1747479786423,4.01993889,2487.6,2487.3,18.1252]
[1747479786424,4.0201005,2487.5,2487.3,17.356]
[1747479786624,4.0201005,2487.5,2487.4,7.544]
[1747479787119,4.02026212,2487.4,2487.3,17.356]
[1747479787416,4.02026212,2487.4,2487.3,24.9]
[1747479788632,4.02026212,2487.4,2487.3,25.28316574]
[1747479789135,4.02026212,2487.4,2487.3,0.38316574]
[1747479789332,4.87938978,2487.4,2487.3,0.38316574]
[1747479789544,5.43028978,2487.4,2487.3,0.38316574]
[1747479789843,13.43028978,2487.4,2487.3,0.38316574]
[1747479790046,13.63982732,2487.4,2487.3,0.38316574]
[1747479790349,12.02090872,2487.0,2486.9,0.48203669]
[1747479790635,21.17413461,2487.0,2486.9,0.48203669]
[1747479791426,22.95946062,2487.0,2486.9,0.48203669]
[1747479791943,23.50946062,2487.0,2486.9,0.48203669]
[1747479792249,4.02268796,2485.9,2485.8,7.546]
[1747479792548,4.02319339,2485.6,2485.4,0.7784]
[1747479792746,7.543,2485.8,2485.4,0.7784]
[1747479792942,7.543,2485.8,2485.5,4.02324295]
[1747479793152,15.546,2486.4,2485.6,4.02317347]
[1747479793153,4.02207829,2486.3,2485.6,4.02317347]
[1747479793460,4.5727165,2486.5,2485.6,0.55]
[1747479793618,4.0215161,2486.7,2485.9,4.02257771]
[1747479793823,4.02185994,2486.5,2486.0,8.35254275]
[1747479794222,4.02188413,2486.4,2486.0,8.35254275]
[1747479794442,4.02171341,2486.6,2486.0,8.35254275]
[1747479794643,4.02173999,2486.5,2486.1,0.7778]
[1747479794846,7.545,2486.6,2486.1,2.09308356]
[1747479795012,4.02180509,2486.5,2486.1,2.09308356]
[1747479795209,4.02200953,2486.4,2486.1,2.09308356]
[1747479795445,4.02220255,2486.2,2486.1,2.09308356]
[1747479795951,11.56665467,2486.6,2486.1,2.09308356]
[1747479796111,4.02182358,2486.5,2486.1,2.09308356]
[1747479796311,4.02189293,2486.4,2486.1,2.09308356]
[1747479796918,7.545,2486.6,2486.2,4.98624899]
[1747479797330,11.5666339,2486.6,2486.2,0.96410836]
[1747479798019,4.02191983,2486.4,2486.2,0.96410836]
[1747479798350,4.02197198,2486.4,2486.1,0.7778]
[1747479798646,4.02119541,2486.9,2486.3,4.02199996]
[1747479798949,4.02077372,2487.1,2486.4,4.02187902]
[1747479799142,4.02108662,2486.9,2486.5,7.545]
[1747479799348,4.02108662,2486.9,2486.6,1.1566879]
[1747479799658,4.02074705,2487.1,2486.6,1.1566879]
[1747479799953,11.56574705,2487.1,2486.7,0.8287]
[1747479800149,11.56574705,2487.1,2486.7,2.18389199]
[1747479800386,7.545,2487.1,2486.7,6.20521066]
[1747479800583,0.5509,2487.5,2486.7,6.2052725]
[1747479800763,7.546,2487.4,2486.7,6.20527994]
[1747479801085,4.02044195,2487.3,2486.8,4.75735573]
[1747479801587,4.02035214,2487.4,2486.9,4.02106841]
[1747479801806,4.02035214,2487.4,2487.0,7.546]
[1747479802091,4.0204705,2487.3,2487.0,7.546]
[1747479802242,4.0204705,2487.3,2487.0,8.77633225]
[1747479803184,4.0197773,2487.7,2487.2,0.7526]
[1747479803387,4.02006219,2487.6,2487.2,0.7526]
[1747479803589,4.02015077,2487.5,2487.2,0.7526]
[1747479803892,4.02015077,2487.5,2487.2,2.10757652]
[1747479805389,4.02000714,2487.6,2487.2,2.10757652]
[1747479805685,4.01978386,2487.7,2487.2,2.10757652]
[1747479805854,4.0197773,2487.7,2487.2,2.10757652]
[1747479806056,4.0197773,2487.7,2487.2,6.12806123]
[1747479806391,4.01993905,2487.6,2487.3,1.01487955]
[1747479807156,4.01963178,2487.8,2487.3,1.01487955]
[1747479807482,4.01978328,2487.7,2487.3,1.01487955]
[1747479807690,4.01995539,2487.6,2487.3,1.01487955]
[1747479808152,4.01985917,2487.7,2487.3,1.01487955]
[1747479808354,17.34907527,2487.9,2487.3,1.01487955]
[1747479808586,4.02016984,2487.5,2487.2,2.10757652]
[1747479808883,4.01996903,2487.6,2487.2,2.10757652]
[1747479809198,17.34907527,2487.9,2487.2,6.12807805]
[1747479809199,4.01986579,2487.7,2487.2,6.12807805]
[1747479809403,4.01994983,2487.6,2487.2,2.10757652]
[1747479811388,4.02010102,2487.5,2487.2,2.10757652]
[1747479811589,4.01961572,2487.8,2487.2,2.10757652]
[1747479811757,0.5509,2487.8,2487.2,0.7526]
[1747479811958,4.02018278,2487.5,2487.2,0.7526]
[1747479815694,4.01993889,2487.6,2487.0,8.3435]
[1747479815877,4.0212321,2486.8,2486.7,0.7975]
[1747479816084,4.02139381,2486.7,2486.6,8.02603669]
[1747479816392,4.02139381,2486.7,2486.6,0.48203669]
[1747479816752,11.57239381,2486.7,2486.6,0.48203669]
[1747479818071,4.02204078,2486.3,2486.2,7.544]
[1747479820998,7.552,2486.5,2486.2,7.544]
[1747479821199,4.02204078,2486.3,2486.2,7.544]
[1747479828292,4.02301162,2485.7,2485.6,24.913]
[1747479828701,4.02284713,2485.9,2485.6,24.913]
[1747479829397,4.02259903,2486.0,2485.6,24.913]
[1747479829596,4.02259903,2486.0,2485.7,0.04022588]
[1747479829816,4.02259903,2486.0,2485.7,3.05109941]
[1747479830213,4.02259903,2486.0,2485.7,3.01087353]
[1747479830731,17.36607527,2486.3,2485.7,3.01087353]
[1747479830732,4.02283785,2485.9,2485.7,3.01087353]
[1747479832196,4.02284978,2485.8,2485.7,3.01087353]
[1747479832703,4.02259963,2486.0,2485.7,3.01087353]
[1747479833225,4.02270844,2485.9,2485.7,3.01087353]
[1747479835828,4.02252469,2486.1,2485.7,3.01087353]
[1747479836032,4.02252469,2486.1,2485.8,1.09676886]
[1747479836435,13.82618665,2486.3,2485.9,0.83212545]
[1747479836614,13.82618665,2486.3,2485.9,0.7919]
[1747479836809,4.57245553,2486.6,2486.0,0.59114872]
[1747479837024,4.02188078,2486.4,2486.1,7.551]
[1747479837616,4.02205,2486.3,2486.1,7.551]
[1747479837933,4.02177926,2486.5,2486.1,7.551]
[1747479838133,4.02177926,2486.5,2486.2,0.7919]
[1747479838320,4.02177926,2486.5,2486.3,0.83831196]
[1747479838637,4.02143154,2486.7,2486.3,0.83831196]
[1747479839235,13.82537881,2486.8,2486.3,0.83831196]
[1747479839407,4.0215695,2486.6,2486.3,0.83831196]
[1747479840143,4.02177137,2486.5,2486.3,0.83831196]
[1747479841441,4.02187902,2486.4,2486.3,0.83831196]
[1747479842943,4.02181041,2486.5,2486.3,0.83831196]
[1747479843310,4.02187902,2486.4,2486.3,0.83831196]
[1747479843533,4.02204078,2486.3,2486.2,0.7919]
[1747479844241,4.02204078,2486.3,2486.2,1.01684023]
[1747479845042,4.02204078,2486.3,2486.2,1.4010107]
[1747479845539,4.02196573,2486.4,2486.2,1.4010107]
[1747479845956,17.35107527,2486.8,2486.3,0.22494023]
[1747479846242,4.02145602,2486.7,2486.3,1.1201413]
[1747479846413,9.80407527,2486.8,2486.4,0.6091107]
[1747479846614,4.02142659,2486.7,2486.4,0.6091107]
[1747479847155,4.02125388,2486.8,2486.5,0.98414023]
[1747479847442,4.02139381,2486.7,2486.6,7.55]
[1747479847953,4.02139381,2486.7,2486.6,7.77494023]
[1747479848946,4.02139381,2486.7,2486.6,7.55]
[1747479851947,4.02122941,2486.9,2486.6,7.55]
[1747479852114,4.02104249,2487.0,2486.6,8.38092]
[1747479852313,4.02121085,2486.9,2486.6,8.38092]
[1747479853010,4.02121085,2486.9,2486.7,0.2250318]
[1747479853211,4.0212321,2486.8,2486.7,0.2250318]
[1747479853951,4.02139381,2486.7,2486.6,8.38092]
[1747479854141,4.02139381,2486.7,2486.6,7.55]
[1747479854538,4.02129273,2486.8,2486.6,7.55]
[1747479855219,4.02139381,2486.7,2486.6,7.55]
[1747479855538,4.02113226,2486.9,2486.6,7.55]
[1747479855539,4.0212694,2486.8,2486.6,7.55]
[1747479855738,4.02139381,2486.7,2486.6,7.55]
[1747479855940,4.02139381,2486.7,2486.4,7.55]